[Event "Early-Titled-Tuesday-Blitz-December-26-2023"]
[Site "Chess.com"]
[Date "2023.12.26"]
[Round "7"]
[White "UK_23"]
[Black "Nasrin_Babayeva"]
[Result "1-0"]
[WhiteElo "2332"]
[BlackElo "1822"]
[TimeControl "180+1"]
[EndTime "9:18:34 PST"]
[Termination "UK_23 won by resignation"]

1. e4 {[%clk 0:03:00.9]} 1... d5 {[%clk 0:03:00]} 2. exd5 {[%clk 0:03:01.2]}
2... Qxd5 {[%clk 0:03:00.4]} 3. Nc3 {[%clk 0:03:01.6]} 3... Qa5 {[%clk
0:03:00.9]} 4. d4 {[%clk 0:03:01.9]} 4... Nf6 {[%clk 0:03:01.3]} 5. Bd3 {[%clk
0:03:01.7]} 5... Bf5 {[%clk 0:02:59.2]} 6. b4 {[%clk 0:02:47.4]} 6... Qxb4
{[%clk 0:02:54.9]} 7. Bxf5 {[%clk 0:02:47.6]} 7... Qxc3+ {[%clk 0:02:53]} 8. Bd2
{[%clk 0:02:47.5]} 8... Qxd4 {[%clk 0:02:50]} 9. Nf3 {[%clk 0:02:47.4]} 9... Qd5
{[%clk 0:02:43.5]} 10. Bd3 {[%clk 0:02:40.6]} 10... e6 {[%clk 0:02:41.7]} 11.
O-O {[%clk 0:02:37.8]} 11... Bc5 {[%clk 0:02:37.2]} 12. Bc3 {[%clk 0:02:26.5]}
12... Nbd7 {[%clk 0:02:34.7]} 13. Qe2 {[%clk 0:02:21.4]} 13... O-O {[%clk
0:02:29.6]} 14. Rfd1 {[%clk 0:02:15.7]} 14... Qh5 {[%clk 0:02:24.1]} 15. h3
{[%clk 0:02:11.9]} 15... Bd6 {[%clk 0:02:06.8]} 16. Rab1 {[%clk 0:02:10]} 16...
Rab8 {[%clk 0:01:37.1]} 17. Rb5 {[%clk 0:01:54.2]} 17... Qh6 {[%clk 0:01:10.5]}
18. Rdb1 {[%clk 0:01:36.9]} 18... b6 {[%clk 0:01:08.5]} 19. a4 {[%clk
0:01:36.5]} 19... c6 {[%clk 0:00:55.2]} 20. R5b3 {[%clk 0:01:30.2]} 20... Nc5
{[%clk 0:00:55]} 21. R3b2 {[%clk 0:01:28.1]} 21... Nxa4 {[%clk 0:00:52.9]} 22.
Bd2 {[%clk 0:01:22.1]} 22... Qh5 {[%clk 0:00:34.7]} 23. Ra2 {[%clk 0:01:13.8]}
23... b5 {[%clk 0:00:27]} 24. Rba1 {[%clk 0:00:59.4]} 24... a6 {[%clk
0:00:22.5]} 25. c4 {[%clk 0:00:56.8]} 25... Nc5 {[%clk 0:00:18.2]} 26. Bc2
{[%clk 0:00:55.9]} 26... b4 {[%clk 0:00:16.5]} 27. Rb2 {[%clk 0:00:49.3]} 27...
b3 {[%clk 0:00:13.1]} 28. Bd1 {[%clk 0:00:48.6]} 28... Nfe4 {[%clk 0:00:11.5]}
29. Be1 {[%clk 0:00:45.4]} 29... Be7 {[%clk 0:00:10.6]} 30. Rab1 {[%clk
0:00:32.8]} 30... Bf6 {[%clk 0:00:11.2]} 31. Rxb3 {[%clk 0:00:28.2]} 31... Nxb3
{[%clk 0:00:11.1]} 32. Rxb3 {[%clk 0:00:28.9]} 32... Rxb3 {[%clk 0:00:10.7]} 33.
Bxb3 {[%clk 0:00:29.8]} 33... Nc5 {[%clk 0:00:10.6]} 34. Bc2 {[%clk 0:00:29.8]}
34... Rb8 {[%clk 0:00:10.9]} 35. Qe3 {[%clk 0:00:22.8]} 35... Qh6 {[%clk
0:00:10]} 36. Qxc5 {[%clk 0:00:21.9]} 36... Qc1 {[%clk 0:00:09.4]} 37. Be4
{[%clk 0:00:17.8]} 37... Bc3 {[%clk 0:00:09.7]} 38. Qe3 {[%clk 0:00:16]} 38...
Qxe3 {[%clk 0:00:07.8]} 39. fxe3 {[%clk 0:00:16.8]} 39... Bxe1 {[%clk
0:00:08.1]} 40. Nxe1 {[%clk 0:00:17.5]} 40... a5 {[%clk 0:00:07.3]} 41. Bxc6
{[%clk 0:00:17.2]} 41... Rc8 {[%clk 0:00:07]} 42. Bb5 {[%clk 0:00:17.6]} 42...
a4 {[%clk 0:00:07.6]} 43. Bxa4 {[%clk 0:00:17.5]} 43... Rxc4 {[%clk 0:00:08.3]}
44. Bb5 {[%clk 0:00:17.6]} 44... Rc3 {[%clk 0:00:08.6]} 45. Kf2 {[%clk
0:00:17.4]} 45... Rb3 {[%clk 0:00:08.8]} 46. Be2 {[%clk 0:00:17.7]} 46... Rb2
{[%clk 0:00:09.2]} 47. Nf3 {[%clk 0:00:18.4]} 47... Kf8 {[%clk 0:00:09.7]} 48.
g4 {[%clk 0:00:18.9]} 48... Ke7 {[%clk 0:00:10.2]} 49. Nd4 {[%clk 0:00:19.6]}
49... Kd6 {[%clk 0:00:10.4]} 50. Kf3 {[%clk 0:00:20.1]} 50... e5 {[%clk
0:00:09.8]} 51. Nf5+ {[%clk 0:00:20.5]} 51... Kd5 {[%clk 0:00:10.3]} 52. Nxg7
{[%clk 0:00:21.4]} 52... f6 {[%clk 0:00:09]} 53. Nf5 {[%clk 0:00:21.5]} 53...
e4+ {[%clk 0:00:09.6]} 54. Kf2 {[%clk 0:00:21.9]} 54... Ke5 {[%clk 0:00:10]} 55.
Ng3 {[%clk 0:00:22.1]} 55... h6 {[%clk 0:00:09.8]} 56. Nh5 {[%clk 0:00:22.4]}
56... f5 {[%clk 0:00:10.1]} 57. gxf5 {[%clk 0:00:19]} 57... Kxf5 {[%clk
0:00:11]} 58. Ng3+ {[%clk 0:00:19.9]} 58... Ke5 {[%clk 0:00:11]} 59. h4 {[%clk
0:00:20.4]} 59... Rc2 {[%clk 0:00:10.6]} 60. Ke1 {[%clk 0:00:20.7]} 60... Rc1+
{[%clk 0:00:10.4]} 61. Bd1 {[%clk 0:00:20.4]} 61... Ra1 {[%clk 0:00:10.3]} 62.
Kd2 {[%clk 0:00:20.9]} 62... Ra2+ {[%clk 0:00:10.6]} 63. Bc2 {[%clk 0:00:21.5]}
63... Ra3 {[%clk 0:00:10.7]} 64. Nxe4 {[%clk 0:00:20.9]} 64... Ra4 {[%clk
0:00:10.2]} 65. Ke2 {[%clk 0:00:17.2]} 65... Rxe4 {[%clk 0:00:10.2]} 66. Bxe4
{[%clk 0:00:17.3]} 66... Kxe4 {[%clk 0:00:11.1]} 67. Kf2 {[%clk 0:00:16]} 67...
h5 {[%clk 0:00:11.5]} 68. Ke2 {[%clk 0:00:15.6]} 68... Kf5 {[%clk 0:00:11.3]}
69. Kf3 {[%clk 0:00:15.9]} 69... Ke5 {[%clk 0:00:11.5]} 70. e4 {[%clk
0:00:16.3]} 70... Kf6 {[%clk 0:00:10.5]} 71. Kf4 {[%clk 0:00:17.2]} 1-0

[Event "Early-Titled-Tuesday-Blitz-December-26-2023"]
[Site "Chess.com"]
[Date "2023.12.26"]
[Round "7"]
[White "campochess"]
[Black "LeoLV10"]
[Result "1/2-1/2"]
[WhiteElo "2195"]
[BlackElo "2470"]
[TimeControl "180+1"]
[EndTime "9:18:39 PST"]
[Termination "Game drawn by repetition"]

1. e4 {[%clk 0:03:00]} 1... c6 {[%clk 0:02:59.4]} 2. Nc3 {[%clk 0:02:58.6]} 2...
d5 {[%clk 0:03:00.3]} 3. Nf3 {[%clk 0:02:58.6]} 3... Bg4 {[%clk 0:03:00.3]} 4.
d3 {[%clk 0:02:57.8]} 4... e6 {[%clk 0:02:58.5]} 5. h3 {[%clk 0:02:57]} 5...
Bxf3 {[%clk 0:02:58.5]} 6. gxf3 {[%clk 0:02:54]} 6... Nd7 {[%clk 0:02:55.9]} 7.
Ne2 {[%clk 0:02:49.6]} 7... Qb6 {[%clk 0:02:39.9]} 8. c3 {[%clk 0:02:48.2]} 8...
Bd6 {[%clk 0:02:36.8]} 9. d4 {[%clk 0:02:47.5]} 9... Ne7 {[%clk 0:02:30.6]} 10.
Rb1 {[%clk 0:02:35.3]} 10... c5 {[%clk 0:02:22.5]} 11. Bf4 {[%clk 0:02:33.2]}
11... cxd4 {[%clk 0:02:16.6]} 12. Bxd6 {[%clk 0:02:32.6]} 12... Qxd6 {[%clk
0:02:16.9]} 13. Nxd4 {[%clk 0:02:29]} 13... a6 {[%clk 0:02:12.7]} 14. Rg1 {[%clk
0:02:18.8]} 14... g6 {[%clk 0:02:05.3]} 15. Qd2 {[%clk 0:02:16.6]} 15... e5
{[%clk 0:02:05]} 16. Nb3 {[%clk 0:02:13]} 16... Nf6 {[%clk 0:02:03.6]} 17. exd5
{[%clk 0:02:06.8]} 17... Qxd5 {[%clk 0:02:00.5]} 18. Qxd5 {[%clk 0:02:03.6]}
18... Nfxd5 {[%clk 0:02:01.1]} 19. Rd1 {[%clk 0:02:01.8]} 19... f6 {[%clk
0:02:00.5]} 20. Bc4 {[%clk 0:02:01.3]} 20... Nf4 {[%clk 0:01:57.8]} 21. h4
{[%clk 0:01:49]} 21... b5 {[%clk 0:01:55.8]} 22. Bf1 {[%clk 0:01:42.8]} 22...
Kf7 {[%clk 0:01:51.4]} 23. Nc5 {[%clk 0:01:41.5]} 23... Ra7 {[%clk 0:01:39.4]}
24. a4 {[%clk 0:01:38.9]} 24... Rc8 {[%clk 0:01:38.2]} 25. Ne4 {[%clk
0:01:31.4]} 25... Ke6 {[%clk 0:01:22.2]} 26. axb5 {[%clk 0:01:29]} 26... axb5
{[%clk 0:01:20.8]} 27. Bxb5 {[%clk 0:01:28.9]} 27... Nf5 {[%clk 0:01:09.1]} 28.
Rg4 {[%clk 0:01:10.6]} 28... Rb8 {[%clk 0:00:53.5]} 29. Rxf4 {[%clk 0:01:08.3]}
29... exf4 {[%clk 0:00:49.9]} 30. Bc4+ {[%clk 0:01:07.7]} 30... Ke7 {[%clk
0:00:47.5]} 31. b3 {[%clk 0:01:03.2]} 31... Rc7 {[%clk 0:00:46]} 32. h5 {[%clk
0:01:00.3]} 32... Nh4 {[%clk 0:00:41]} 33. hxg6 {[%clk 0:00:50.7]} 33... hxg6
{[%clk 0:00:33.7]} 34. Nd2 {[%clk 0:00:39.6]} 34... g5 {[%clk 0:00:31.9]} 35.
Ke2 {[%clk 0:00:36.6]} 35... Kf8 {[%clk 0:00:29.6]} 36. Ra1 {[%clk 0:00:35]}
36... Kg7 {[%clk 0:00:28.7]} 37. Ra6 {[%clk 0:00:32.3]} 37... Re8+ {[%clk
0:00:29]} 38. Kd3 {[%clk 0:00:31.2]} 38... Rd8+ {[%clk 0:00:26.8]} 39. Kc2
{[%clk 0:00:29.2]} 39... Rxd2+ {[%clk 0:00:22.6]} 40. Kxd2 {[%clk 0:00:28]}
40... Nxf3+ {[%clk 0:00:23.5]} 41. Kd3 {[%clk 0:00:28.1]} 41... Ne5+ {[%clk
0:00:24]} 42. Kd4 {[%clk 0:00:27.4]} 42... g4 {[%clk 0:00:24.2]} 43. Bd5 {[%clk
0:00:23.7]} 43... g3 {[%clk 0:00:23.8]} 44. fxg3 {[%clk 0:00:22.8]} 44... fxg3
{[%clk 0:00:24.7]} 45. c4 {[%clk 0:00:19.4]} 45... Rd7 {[%clk 0:00:24.7]} 46.
Ke3 {[%clk 0:00:18.6]} 46... Kg6 {[%clk 0:00:15.5]} 47. Ra8 {[%clk 0:00:16.9]}
47... Rg7 {[%clk 0:00:13.4]} 48. Be4+ {[%clk 0:00:15.3]} 48... f5 {[%clk
0:00:12]} 49. Ra6+ {[%clk 0:00:13.9]} 49... Kg5 {[%clk 0:00:12.6]} 50. Bg2
{[%clk 0:00:12.9]} 50... f4+ {[%clk 0:00:12.2]} 51. Ke4 {[%clk 0:00:12.5]} 51...
Re7 {[%clk 0:00:11.2]} 52. Ra5 {[%clk 0:00:11.2]} 52... Kg4 {[%clk 0:00:09.2]}
53. Rxe5 {[%clk 0:00:10.7]} 53... Rxe5+ {[%clk 0:00:09.5]} 54. Kxe5 {[%clk
0:00:10.4]} 54... f3 {[%clk 0:00:10.1]} 55. Bxf3+ {[%clk 0:00:10.3]} 55... Kxf3
{[%clk 0:00:10.8]} 56. c5 {[%clk 0:00:10]} 56... g2 {[%clk 0:00:11.7]} 57. c6
{[%clk 0:00:10.3]} 57... g1=Q {[%clk 0:00:12.6]} 58. c7 {[%clk 0:00:10.4]} 58...
Qg8 {[%clk 0:00:12.4]} 59. Kd6 {[%clk 0:00:09.8]} 59... Qc8 {[%clk 0:00:12.7]}
60. b4 {[%clk 0:00:09.7]} 60... Kf4 {[%clk 0:00:12.1]} 61. b5 {[%clk 0:00:09.8]}
61... Kf5 {[%clk 0:00:12.2]} 62. Kc6 {[%clk 0:00:09.5]} 62... Ke6 {[%clk
0:00:12]} 63. b6 {[%clk 0:00:09.7]} 63... Qd7+ {[%clk 0:00:12.2]} 64. Kb7 {[%clk
0:00:09.3]} 64... Qd5+ {[%clk 0:00:12.3]} 65. Kb8 {[%clk 0:00:08.6]} 65... Qd6
{[%clk 0:00:10.4]} 66. Kb7 {[%clk 0:00:05.2]} 66... Qd5+ {[%clk 0:00:07.7]} 67.
Kb8 {[%clk 0:00:05.2]} 67... Qe5 {[%clk 0:00:08.1]} 68. Kb7 {[%clk 0:00:04.1]}
68... Qd5+ {[%clk 0:00:07.8]} 1/2-1/2

[Event "Early-Titled-Tuesday-Blitz-December-26-2023"]
[Site "Chess.com"]
[Date "2023.12.26"]
[Round "7"]
[White "Road2GM3000"]
[Black "Kimster98"]
[Result "1-0"]
[WhiteElo "2507"]
[BlackElo "2543"]
[TimeControl "180+1"]
[EndTime "9:18:48 PST"]
[Termination "Road2GM3000 won by checkmate"]

1. d4 {[%clk 0:03:00.9]} 1... Nc6 {[%clk 0:02:54.7]} 2. c4 {[%clk 0:03:01.1]}
2... d5 {[%clk 0:02:54.5]} 3. Nc3 {[%clk 0:03:01]} 3... Nf6 {[%clk 0:02:51.5]}
4. Nf3 {[%clk 0:03:00.6]} 4... dxc4 {[%clk 0:02:51.4]} 5. Bg5 {[%clk 0:02:58.5]}
5... a6 {[%clk 0:02:40.9]} 6. a4 {[%clk 0:02:55.2]} 6... h6 {[%clk 0:02:30.5]}
7. Bh4 {[%clk 0:02:54]} 7... Bf5 {[%clk 0:02:27.8]} 8. e3 {[%clk 0:02:53.5]}
8... Nb4 {[%clk 0:02:20.5]} 9. Rc1 {[%clk 0:02:32]} 9... Bd3 {[%clk 0:01:59.9]}
10. Ne5 {[%clk 0:02:28.4]} 10... Bxf1 {[%clk 0:01:57.2]} 11. Kxf1 {[%clk
0:02:24.8]} 11... e6 {[%clk 0:01:57.2]} 12. Nxc4 {[%clk 0:02:21.4]} 12... Be7
{[%clk 0:01:56.8]} 13. f3 {[%clk 0:02:13]} 13... Nfd5 {[%clk 0:01:50.2]} 14.
Bxe7 {[%clk 0:02:08.7]} 14... Qxe7 {[%clk 0:01:49.2]} 15. e4 {[%clk 0:01:54.6]}
15... Nf4 {[%clk 0:01:39.9]} 16. Qd2 {[%clk 0:01:52.6]} 16... Nfd3 {[%clk
0:01:38.9]} 17. Rd1 {[%clk 0:01:47.3]} 17... c5 {[%clk 0:01:27.3]} 18. d5 {[%clk
0:01:43.7]} 18... exd5 {[%clk 0:01:16.7]} 19. Nxd5 {[%clk 0:01:43.1]} 19... Nxd5
{[%clk 0:01:16.9]} 20. Qxd3 {[%clk 0:01:41.1]} 20... Nb4 {[%clk 0:01:14.2]} 21.
Nd6+ {[%clk 0:01:40.3]} 21... Kf8 {[%clk 0:01:13.2]} 22. Qc4 {[%clk 0:00:59.4]}
22... b6 {[%clk 0:01:11.3]} 23. Nf5 {[%clk 0:00:49.8]} 23... Qe6 {[%clk
0:01:08.7]} 24. Qc3 {[%clk 0:00:44.8]} 24... Qf6 {[%clk 0:00:46.9]} 25. Qxf6
{[%clk 0:00:42.7]} 25... gxf6 {[%clk 0:00:47.8]} 26. Rd6 {[%clk 0:00:41.8]}
26... b5 {[%clk 0:00:48.3]} 27. a5 {[%clk 0:00:39.2]} 27... c4 {[%clk
0:00:48.4]} 28. Ke2 {[%clk 0:00:33]} 28... Nd3 {[%clk 0:00:42.2]} 29. Rd1 {[%clk
0:00:31.6]} 29... Kg8 {[%clk 0:00:37.9]} 30. b3 {[%clk 0:00:30.1]} 30... Nf4+
{[%clk 0:00:36.7]} 31. Ke3 {[%clk 0:00:26.5]} 31... Ne6 {[%clk 0:00:32.3]} 32.
bxc4 {[%clk 0:00:20.5]} 32... bxc4 {[%clk 0:00:33.2]} 33. Rc6 {[%clk 0:00:19.6]}
33... Kh7 {[%clk 0:00:33.4]} 34. Rd7 {[%clk 0:00:18.8]} 34... Kg8 {[%clk
0:00:14.7]} 35. Rxc4 {[%clk 0:00:17.9]} 35... Rb8 {[%clk 0:00:14.9]} 36. Rc6
{[%clk 0:00:16.7]} 36... Rb3+ {[%clk 0:00:13.1]} 37. Kf2 {[%clk 0:00:15.7]}
37... h5 {[%clk 0:00:13]} 38. Rc8+ {[%clk 0:00:12.1]} 38... Kh7 {[%clk
0:00:13.6]} 39. Rxf7+ {[%clk 0:00:12.5]} 39... Kg6 {[%clk 0:00:14.2]} 40. Rxh8
{[%clk 0:00:10.1]} 40... Kxf7 {[%clk 0:00:14.4]} 41. Ra8 {[%clk 0:00:08.4]}
41... Nc5 {[%clk 0:00:14.1]} 42. Kg3 {[%clk 0:00:04.7]} 42... Ra3 {[%clk
0:00:11.9]} 43. Nd6+ {[%clk 0:00:04.8]} 43... Ke6 {[%clk 0:00:11.4]} 44. Nc4
{[%clk 0:00:05.4]} 44... Ra4 {[%clk 0:00:11.9]} 45. Ne3 {[%clk 0:00:05.6]} 45...
Rxa5 {[%clk 0:00:11.7]} 46. Rh8 {[%clk 0:00:06.2]} 46... Rb5 {[%clk 0:00:10.4]}
47. Nd5 {[%clk 0:00:05.2]} 47... f5 {[%clk 0:00:10.1]} 48. Nf4+ {[%clk 0:00:05]}
48... Kf7 {[%clk 0:00:10.1]} 49. exf5 {[%clk 0:00:04.6]} 49... Nd7 {[%clk
0:00:09.7]} 50. Rh7+ {[%clk 0:00:05]} 50... Ke8 {[%clk 0:00:09.6]} 51. Rxh5
{[%clk 0:00:04.7]} 51... a5 {[%clk 0:00:10.2]} 52. Ne6 {[%clk 0:00:04.8]} 52...
Re5 {[%clk 0:00:06]} 53. Rh8+ {[%clk 0:00:05.1]} 53... Ke7 {[%clk 0:00:06.3]}
54. Ra8 {[%clk 0:00:05.6]} 54... Rxf5 {[%clk 0:00:05.2]} 55. Nd4 {[%clk
0:00:06.3]} 55... Rd5 {[%clk 0:00:05.5]} 56. Ne2 {[%clk 0:00:05]} 56... Nb6
{[%clk 0:00:05.2]} 57. Ra7+ {[%clk 0:00:04.8]} 57... Kd6 {[%clk 0:00:05.8]} 58.
Nf4 {[%clk 0:00:05.7]} 58... Rb5 {[%clk 0:00:05.7]} 59. h4 {[%clk 0:00:06]}
59... a4 {[%clk 0:00:06.3]} 60. h5 {[%clk 0:00:06.6]} 60... Rg5+ {[%clk
0:00:05.4]} 61. Kh4 {[%clk 0:00:06.7]} 61... Rf5 {[%clk 0:00:06.1]} 62. Kg4
{[%clk 0:00:06.2]} 62... Rf8 {[%clk 0:00:07]} 63. Ng6 {[%clk 0:00:06.3]} 63...
Rg8 {[%clk 0:00:07]} 64. Kg5 {[%clk 0:00:06.3]} 64... Ke6 {[%clk 0:00:06.5]} 65.
Ra6 {[%clk 0:00:06.3]} 65... Kf7 {[%clk 0:00:04.8]} 66. Rxb6 {[%clk 0:00:06]}
66... Rc8 {[%clk 0:00:05.7]} 67. Ra6 {[%clk 0:00:06.2]} 67... Rc5+ {[%clk
0:00:06.6]} 68. Kg4 {[%clk 0:00:06.6]} 68... Rc4+ {[%clk 0:00:07]} 69. f4 {[%clk
0:00:06.8]} 69... Rc2 {[%clk 0:00:07.3]} 70. g3 {[%clk 0:00:07.5]} 70... Ra2
{[%clk 0:00:06.3]} 71. f5 {[%clk 0:00:06.9]} 71... a3 {[%clk 0:00:06.2]} 72. h6
{[%clk 0:00:07.4]} 72... Kg8 {[%clk 0:00:06.5]} 73. Kg5 {[%clk 0:00:06.7]} 73...
Rh2 {[%clk 0:00:06.1]} 74. Rxa3 {[%clk 0:00:04.6]} 74... Rg2 {[%clk 0:00:06.6]}
75. Ra8+ {[%clk 0:00:04]} 75... Kh7 {[%clk 0:00:06.1]} 76. Rh8# {[%clk
0:00:04.2]} 1-0

[Event "Early-Titled-Tuesday-Blitz-December-26-2023"]
[Site "Chess.com"]
[Date "2023.12.26"]
[Round "7"]
[White "Zhigalko_Sergei"]
[Black "DarkAlekhine"]
[Result "1-0"]
[WhiteElo "2897"]
[BlackElo "2735"]
[TimeControl "180+1"]
[EndTime "9:18:49 PST"]
[Termination "Zhigalko_Sergei won on time"]

1. e4 {[%clk 0:03:00.9]} 1... Nf6 {[%clk 0:03:00.1]} 2. e5 {[%clk 0:03:01.2]}
2... Nd5 {[%clk 0:03:00.4]} 3. d4 {[%clk 0:03:01.9]} 3... d6 {[%clk 0:03:00.8]}
4. Nf3 {[%clk 0:03:02.5]} 4... g6 {[%clk 0:03:00.8]} 5. Bc4 {[%clk 0:03:02.6]}
5... Nb6 {[%clk 0:03:01]} 6. Bb3 {[%clk 0:03:03.1]} 6... Bg7 {[%clk 0:03:01.5]}
7. Qe2 {[%clk 0:03:03.3]} 7... O-O {[%clk 0:02:59.5]} 8. h3 {[%clk 0:03:03.8]}
8... c5 {[%clk 0:02:59.3]} 9. dxc5 {[%clk 0:03:03.8]} 9... dxc5 {[%clk
0:03:00.2]} 10. O-O {[%clk 0:03:04.3]} 10... c4 {[%clk 0:03:00.4]} 11. Bxc4
{[%clk 0:03:04]} 11... Nxc4 {[%clk 0:03:01.3]} 12. Qxc4 {[%clk 0:03:04.8]} 12...
Nc6 {[%clk 0:03:01.7]} 13. Re1 {[%clk 0:03:02]} 13... Bf5 {[%clk 0:02:59.5]} 14.
c3 {[%clk 0:02:52.9]} 14... Qb6 {[%clk 0:02:30.2]} 15. Qh4 {[%clk 0:02:49.3]}
15... Rfd8 {[%clk 0:02:20.5]} 16. Nbd2 {[%clk 0:02:43.5]} 16... Qa6 {[%clk
0:02:11.5]} 17. Nb3 {[%clk 0:02:30.4]} 17... Nxe5 {[%clk 0:01:09.6]} 18. Nxe5
{[%clk 0:02:21.8]} 18... Bxe5 {[%clk 0:01:10.5]} 19. Rxe5 {[%clk 0:02:06.8]}
19... Rd1+ {[%clk 0:01:10.5]} 20. Kh2 {[%clk 0:02:06.8]} 20... Qf1 {[%clk
0:01:10.6]} 21. Rxf5 {[%clk 0:01:34.9]} 21... gxf5 {[%clk 0:00:40.2]} 22. Bh6
{[%clk 0:01:34.2]} 22... Qg1+ {[%clk 0:00:40]} 23. Kg3 {[%clk 0:01:29.3]} 23...
Rd3+ {[%clk 0:00:40.1]} 24. f3 {[%clk 0:01:06]} 24... Qb6 {[%clk 0:00:39.4]} 25.
Re1 {[%clk 0:00:41.2]} 25... Qg6+ {[%clk 0:00:36.6]} 26. Qg5 {[%clk 0:00:24.3]}
26... Rd6 {[%clk 0:00:25.6]} 27. Kf2 {[%clk 0:00:15.3]} 27... Qxg5 {[%clk
0:00:21.9]} 28. Bxg5 {[%clk 0:00:15.1]} 28... f6 {[%clk 0:00:22.3]} 29. Be3
{[%clk 0:00:11.8]} 29... e5 {[%clk 0:00:22.1]} 30. f4 {[%clk 0:00:10.8]} 30...
Kf7 {[%clk 0:00:21]} 31. Bc5 {[%clk 0:00:07.1]} 31... Re6 {[%clk 0:00:18.4]} 32.
Rd1 {[%clk 0:00:06.9]} 32... b6 {[%clk 0:00:18.6]} 33. Be3 {[%clk 0:00:04.3]}
33... Ke7 {[%clk 0:00:17.3]} 34. Rd2 {[%clk 0:00:04.2]} 34... Rd8 {[%clk
0:00:16.1]} 35. Rxd8 {[%clk 0:00:04.3]} 35... Kxd8 {[%clk 0:00:16.3]} 36. Nc1
{[%clk 0:00:04.3]} 36... Rd6 {[%clk 0:00:15.6]} 37. Ke2 {[%clk 0:00:04]} 37...
Ke7 {[%clk 0:00:15.6]} 38. Nd3 {[%clk 0:00:04]} 38... Ke6 {[%clk 0:00:16.2]} 39.
Ne1 {[%clk 0:00:03.4]} 39... Rd8 {[%clk 0:00:16.4]} 40. Nf3 {[%clk 0:00:03.4]}
40... Rg8 {[%clk 0:00:16.1]} 41. Kf2 {[%clk 0:00:02.9]} 41... Kd5 {[%clk
0:00:16.6]} 42. fxe5 {[%clk 0:00:02.7]} 42... fxe5 {[%clk 0:00:16.6]} 43. Bh6
{[%clk 0:00:02.5]} 43... Ke4 {[%clk 0:00:11.9]} 44. b3 {[%clk 0:00:02]} 44...
Re8 {[%clk 0:00:11.2]} 45. Ng5+ {[%clk 0:00:02]} 45... Kd3 {[%clk 0:00:10.7]}
46. c4 {[%clk 0:00:02.4]} 46... e4 {[%clk 0:00:10.5]} 47. Kg3 {[%clk 0:00:02]}
47... e3 {[%clk 0:00:10.6]} 48. Nf3 {[%clk 0:00:02.6]} 48... Ke4 {[%clk
0:00:08.9]} 49. Ng5+ {[%clk 0:00:02.4]} 49... Kd3 {[%clk 0:00:08.2]} 50. Nf3
{[%clk 0:00:02.7]} 50... e2 {[%clk 0:00:07.9]} 51. Kf2 {[%clk 0:00:02.1]} 51...
Kc2 {[%clk 0:00:06.5]} 52. Bd2 {[%clk 0:00:02.1]} 52... Kb1 {[%clk 0:00:06.1]}
53. Be1 {[%clk 0:00:01.9]} 53... Kxa2 {[%clk 0:00:06.3]} 54. b4 {[%clk
0:00:02.8]} 54... Kb3 {[%clk 0:00:06.6]} 55. c5 {[%clk 0:00:03.4]} 55... bxc5
{[%clk 0:00:07.1]} 56. bxc5 {[%clk 0:00:04.3]} 56... Kc4 {[%clk 0:00:06.7]} 57.
c6 {[%clk 0:00:04.8]} 57... Kd5 {[%clk 0:00:06.1]} 58. c7 {[%clk 0:00:05.2]}
58... Kc6 {[%clk 0:00:03.8]} 59. Ba5 {[%clk 0:00:05.8]} 59... Kb7 {[%clk
0:00:03.1]} 60. Ke1 {[%clk 0:00:04.7]} 60... Kc8 {[%clk 0:00:03.1]} 61. Nd4
{[%clk 0:00:04.7]} 61... Re4 {[%clk 0:00:03]} 62. Nxf5 {[%clk 0:00:04.4]} 62...
Re6 {[%clk 0:00:01.7]} 63. g4 {[%clk 0:00:03.8]} 63... Kb7 {[%clk 0:00:01.2]}
64. h4 {[%clk 0:00:03.7]} 64... Rc6 {[%clk 0:00:01.5]} 65. Ne7 {[%clk
0:00:03.8]} 1-0